bitfinex/quotes_SOLUSD_20240827
["timestamp","ask_amount","ask_price","bid_price","bid_amount"]
[1724740268798,16.6403,158.84,158.83,6.296]
[1724740268975,16.6403,158.88,158.83,6.296]
[1724740269298,20.0,158.87,158.82,6.2964]
[1724740270581,45.0,158.86,158.82,6.2964]
[1724740272303,45.0,158.86,158.81,22.0386]
[1724740272484,51.2949,158.86,158.81,15.7419]
[1724740274081,24.40801348,158.85,158.77,15.7451]
[1724740274279,22.9363,158.83,158.78,6.298]
[1724740274484,45.0,158.82,158.78,6.298]
[1724740277096,45.0,158.82,158.77,22.0435]
[1724740277815,6.2969,158.81,158.77,15.7451]
[1724740277987,45.0,158.8,158.77,15.7451]
[1724740279107,45.0,158.8,158.77,22.0435]
[1724740279308,45.0,158.81,158.77,22.0435]
[1724740281291,51.2968,158.81,158.77,15.7451]
[1724740281917,6.2972,158.8,158.75,6.2991]
[1724740282090,45.0,158.79,158.75,6.2991]
[1724740282488,45.0,158.79,158.76,6.2988]
[1724740282693,45.0,158.8,158.76,6.2988]
[1724740283413,51.2972,158.8,158.75,6.2991]
[1724740284018,45.0,158.8,158.75,6.2991]
[1724740285891,6.2964,158.82,158.75,1.25978841]
[1724740287215,45.0,158.81,158.75,1.25978841]
[1724740287811,45.0,158.81,158.77,6.2983]
[1724740291116,45.0,158.81,158.74,15.7488]
[1724740291424,51.2969,158.81,158.76,6.2988]
[1724740294124,16.6403,158.83,158.75,1.25976616]
[1724740294323,16.6403,158.83,158.79,6.2972]
[1724740295716,15.1666,158.87,158.8,17.00176451]
[1724740295911,15.1666,158.87,158.83,6.2959]
[1724740296114,15.1666,158.87,158.84,6.2955]
[1724740296838,6.294,158.89,158.84,6.2955]
[1724740297002,6.2941,158.88,158.82,22.0361]
[1724740297406,16.06182021,158.88,158.82,22.0361]
[1724740297601,9.76772021,158.86,158.79,15.744]
[1724740297805,9.76772021,158.86,158.8,6.297]
[1724740297806,6.2952,158.85,158.8,6.297]
[1724740298001,24.40719449,158.87,158.81,6.2968]
[1724740298237,45.0,158.86,158.81,6.2968]
[1724740299818,51.2948,158.86,158.81,6.2968]
[1724740301723,6.2952,158.85,158.79,22.0412]
[1724740301924,45.0,158.84,158.79,22.0412]
[1724740304024,45.0,158.84,158.8,6.297]
[1724740315718,24.40719449,158.83,158.79,15.744]
[1724740316161,45.0,158.84,158.79,22.0416]
[1724740318929,51.2958,158.84,158.79,22.0416]
[1724740320063,61.06037438,158.84,158.79,22.0416]
[1724740321153,6.2961,158.83,158.79,15.744]
[1724740321457,6.2961,158.83,158.78,6.2978]
[1724740321642,51.2965,158.82,158.77,6.2984]
[1724740321848,6.2968,158.81,158.76,22.0454]
[1724740322169,45.0,158.8,158.76,22.0454]
[1724740323271,54.76457438,158.8,158.72,47.251]
[1724740323457,9.76457438,158.78,158.72,47.251]
[1724740325439,16.06257438,158.78,158.73,6.2996]
[1724740325647,45.0,158.77,158.73,6.2996]
[1724740326650,9.76457438,158.76,158.72,22.0503]
[1724740327640,16.06337438,158.76,158.72,15.75]
[1724740329132,45.0,158.75,158.72,15.75]
[1724740329546,6.2988,158.76,158.72,15.75]
[1724740331341,15.8931,158.79,158.72,15.75]
[1724740331551,65.0,158.78,158.72,15.75]
[1724740331947,71.2983,158.78,158.73,6.2999]
[1724740335059,9.76457438,158.77,158.73,6.2999]
[1724740336478,9.76457438,158.75,158.72,15.75]
[1724740341742,45.0,158.74,158.69,22.055]
[1724740341947,45.0,158.74,158.7,6.301]
[1724740342862,51.2997,158.74,158.69,15.7538]
[1724740344771,51.2997,158.74,158.69,22.0553]
[1724740345763,51.2997,158.74,158.66,7.1187822]
[1724740345764,6.3008,158.71,158.66,7.1187822]
[1724740346069,16.06537438,158.71,158.66,7.1187822]
[1724740346472,9.76457438,158.71,158.66,7.1187822]
[1724740346776,6.3004,158.72,158.66,7.1187822]
[1724740346975,20.0,158.71,158.67,6.3023]
[1724740350772,9.76457438,158.72,158.68,6.3016]
[1724740350982,28.6989,158.73,158.68,6.3016]
[1724740351266,20.0,158.72,158.68,6.3016]
[1724740352582,26.3004,158.72,158.67,22.0575]
[1724740353657,26.3004,158.72,158.68,6.3019]
[1724740355071,22.3989,158.73,158.68,6.3019]
[1724740357156,28.6989,158.73,158.68,6.3019]
[1724740362386,22.0402,158.73,158.68,6.3019]
[1724740363686,6.2996,158.74,158.69,6.3015]
[1724740363866,20.0,158.73,158.69,6.3015]
[1724740364383,38.247,158.77,158.7,1.26020713]
[1724740364384,6.2988,158.76,158.7,1.26020713]
[1724740364563,6.2976,158.8,158.75,6.2989]
[1724740364764,6.2976,158.79,158.73,22.0488]
[1724740364972,6.2976,158.79,158.74,6.2994]
[1724740367587,6.2972,158.8,158.74,6.2994]
[1724740367791,65.0,158.79,158.74,6.2994]
[1724740368094,381.3,158.81,158.77,6.2984]
[1724740368269,20.0,158.8,158.77,6.2984]
[1724740368592,381.3,158.81,158.77,6.2984]
[1724740371070,16.06017438,158.84,158.78,6.2978]
[1724740371268,31.54457438,158.86,158.77,1.25959068]
[1724740371582,6.2953,158.85,158.79,6.2976]
[1724740372572,45.0,158.84,158.79,6.2976]
[1724740373575,21.78,158.86,158.78,15.7441]
[1724740373875,21.78,158.86,158.79,1.25932952]
[1724740374287,15.4018,158.86,158.79,1.25932952]
[1724740374681,21.6967,158.86,158.81,6.2967]
[1724740375084,6.2944,158.87,158.82,6.2963]
[1724740375283,6.294,158.88,158.83,6.296]
[1724740375496,20.0,158.87,158.83,6.296]
[1724740375699,20.0,158.87,158.84,6.2955]
[1724740375879,6.2937,158.89,158.84,6.2955]
[1724740376075,21.78,158.9,158.85,6.2952]
[1724740376275,21.78,158.9,158.83,15.7399]
[1724740376276,15.4018,158.9,158.86,6.2946]
[1724740378389,6.2925,158.92,158.87,6.2943]
[1724740378800,16.05667438,158.93,158.87,6.2943]
[1724740379469,21.6935,158.94,158.89,6.2936]
[1724740379671,9.76457438,158.96,158.91,6.2927]
[1724740379884,31.54457438,158.98,158.91,6.2927]
[1724740380175,16.05547438,158.96,158.9,6.2932]
[1724740380479,16.05547438,158.96,158.89,15.734]
[1724740380480,16.05627438,158.94,158.89,15.734]
[1724740380673,6.2922,158.93,158.85,15.7373]
[1724740381216,16.05707438,158.92,158.87,6.2943]
[1724740382084,9.76457438,158.9,158.85,15.7373]
[1724740382691,9.76457438,158.9,158.85,22.0325]
[1724740383001,16.05787438,158.9,158.85,22.0325]
[1724740384080,6.2933,158.9,158.85,22.0325]
[1724740384800,51.2936,158.89,158.85,15.7373]
[1724740385200,51.2936,158.89,158.82,22.037]
[1724740385391,6.2942,158.88,158.83,6.2959]
[1724740385910,45.0,158.87,158.82,15.741]
[1724740386075,6.2944,158.87,158.82,15.741]
[1724740386384,6.2944,158.87,158.82,23.29634338]
[1724740386584,6.2944,158.87,158.82,22.0372]
[1724740386894,45.0,158.89,158.82,15.741]
[1724740386895,6.2948,158.86,158.82,15.741]
[1724740387087,45.0,158.85,158.81,6.2967]
[1724740387492,51.2953,158.85,158.79,15.7439]
[1724740388677,51.2953,158.85,158.8,6.2972]
[1724740389791,45.0,158.85,158.8,6.2972]
[1724740391305,51.2953,158.85,158.8,6.2972]
[1724740391709,6.2964,158.82,158.77,6.2984]
[1724740392084,24.39609223,158.83,158.72,47.2519]
[1724740392286,6.2975,158.8,158.75,6.2989]
[1724740393302,21.545,158.8,158.75,6.2989]
[1724740393685,75.77089223,158.79,158.73,6.2996]
[1724740393891,75.77089223,158.79,158.72,22.0503]
[1724740393892,6.298,158.78,158.72,22.0503]
[1724740394081,45.0,158.77,158.72,22.0503]
[1724740394283,51.3748,158.79,158.74,6.2996]
[1724740394893,15.2475,158.8,158.72,15.75]
[1724740394894,15.2475,158.8,158.73,1.25983395]
[1724740395108,15.2475,158.8,158.74,6.2992]
[1724740395405,15.2475,158.8,158.75,6.2989]
[1724740395626,6.2984,158.77,158.72,22.0503]
[1724740397507,24.39609223,158.78,158.72,22.0503]
[1724740397708,45.0,158.77,158.72,22.0503]
[1724740400287,39.64359223,158.8,158.73,1.25999594]
[1724740400493,39.64359223,158.8,158.72,15.75]
[1724740400694,20.0,158.79,158.74,6.2995]
[1724740400894,26.2977,158.79,158.74,6.2995]
[1724740401805,45.0,158.78,158.74,6.2995]
[1724740403714,6.3748,158.83,158.74,24.39609223]
[1724740403925,16.1952,158.84,158.79,6.2975]
[1724740404293,6.296,158.83,158.78,6.298]
[1724740405137,22.4908,158.84,158.79,6.2975]
[1724740406013,22.4908,158.84,158.78,6.2979]
[1724740406193,6.2964,158.82,158.77,22.0434]
[1724740406401,6.2969,158.81,158.77,15.7451]
[1724740409210,6.2964,158.82,158.77,22.0435]
[1724740410499,6.297,158.81,158.77,15.7451]
[1724740410713,16.1952,158.84,158.77,15.7451]
[1724740410920,20.0,158.83,158.77,15.7451]
[1724740411809,6.2964,158.82,158.77,22.0434]
[1724740414705,16.1952,158.84,158.79,15.7431]
[1724740414912,6.2951,158.86,158.81,6.2968]
[1724740415130,255.4,158.87,158.82,1.25933311]
[1724740415444,22.588,158.88,158.83,6.296]
[1724740420325,381.3,158.9,158.83,16.99838046]
[1724740420531,6.2932,158.91,158.85,6.2948]
[1724740420724,6.2932,158.91,158.86,6.2947]
[1724740422609,6.2935,158.9,158.85,6.2951]
[1724740424214,22.5866,158.92,158.86,6.2946]
[1724740424427,20.0,158.91,158.86,6.2946]
[1724740424935,16.2939,158.92,158.86,15.7369]
[1724740425115,6.292,158.93,158.86,15.7369]
[1724740425527,6.2925,158.92,158.86,15.7369]
[1724740426425,6.293,158.91,158.86,22.0316]
[1724740427223,6.2925,158.92,158.87,6.2944]
[1724740428034,6.2925,158.92,158.86,15.7369]
[1724740428035,6.2928,158.91,158.86,22.0316]
[1724740428430,6.2924,158.92,158.87,6.2943]
[1724740431433,6.2928,158.91,158.86,22.0317]
[1724740435448,6.2928,158.91,158.87,6.2944]
[1724740437430,6.2928,158.91,158.86,22.0316]
[1724740437856,6.2928,158.91,158.87,6.2943]
[1724740438036,6.2925,158.92,158.87,6.2943]
[1724740440359,381.3,158.95,158.88,6.2939]
[1724740440651,65.0,158.94,158.88,6.2939]
[1724740441352,6.2925,158.92,158.87,6.2944]
[1724740443255,6.2925,158.92,158.85,6.295]
[1724740443256,9.75373461,158.92,158.85,6.295]
[1724740443461,80.7293,158.94,158.8,2.7593]
[1724740443462,9.75373461,158.9,158.8,2.7593]
[1724740443642,6.2945,158.87,158.82,6.2964]
[1724740444332,9.75373461,158.88,158.81,6.2967]
[1724740444333,6.2949,158.86,158.81,6.2967]
[1724740445434,6.2944,158.87,158.82,6.2962]
[1724740450542,45.0,158.86,158.82,6.2962]
[1724740451761,45.0,158.87,158.82,6.2962]
[1724740451948,9.75373461,158.88,158.84,6.2955]
[1724740452459,28.39653198,158.94,158.85,15.7373]
[1724740452643,29.75373461,158.93,158.85,15.7373]
[1724740453347,6.2928,158.92,158.87,6.2941]
[1724740453741,45.0,158.91,158.87,6.2941]
[1724740454082,20.0,158.9,158.87,6.2941]
[1724740455656,20.0,158.9,158.85,15.7373]
[1724740455657,20.0,158.9,158.85,22.0321]
[1724740455855,45.0,158.89,158.86,6.2947]
[1724740456064,54.75373461,158.89,158.85,15.7373]
[1724740456257,54.75373461,158.89,158.79,31.4863]
[1724740456446,16.04823461,158.87,158.82,15.741]
[1724740456762,45.0,158.86,158.83,6.2958]
[1724740456943,45.0,158.87,158.83,6.2958]
[1724740458858,61.04813461,158.87,158.82,22.0373]
[1724740459557,81.04813461,158.87,158.82,22.0373]
[1724740461153,61.04813461,158.87,158.82,22.0373]
[1724740461476,6.2949,158.86,158.82,15.741]
[1724740461768,61.04903461,158.85,158.8,6.2971]
[1724740462059,51.2953,158.85,158.8,6.2971]
[1724740462265,45.0,158.85,158.81,6.2968]
[1724740462956,6.2963,158.83,158.79,15.7437]
[1724740463265,6.2972,158.8,158.76,15.7468]
[1724740463645,6.2968,158.81,158.76,22.0454]
[1724740463847,65.0,158.8,158.76,22.0454]
[1724740464042,6.2992,158.75,158.7,9.0603]
[1724740464266,44.4109808,158.79,158.7,2.7593]
[1724740464439,65.0,158.78,158.72,6.3003]
[1724740464640,65.0,158.78,158.73,6.2999]
[1724740465078,65.0,158.78,158.74,6.2996]
[1724740465650,65.0,158.78,158.71,15.7514]
[1724740466368,71.2981,158.78,158.72,6.3004]
[1724740466570,95.7090808,158.78,158.72,6.3004]
[1724740466756,95.7090808,158.78,158.69,6.1901]
[1724740466757,65.0,158.78,158.74,6.2995]
[1724740467242,71.2981,158.78,158.72,6.3]
[1724740467751,65.0,158.78,158.7,15.7523]
[1724740468162,65.0,158.78,158.73,6.2998]
[1724740468653,65.0,158.78,158.74,6.2995]
[1724740468847,65.0,158.78,158.7,15.7523]
[1724740469754,65.0,158.78,158.73,6.2999]
[1724740470270,65.0,158.78,158.74,6.2994]
[1724740470466,15.3552,158.82,158.76,6.2987]
[1724740470673,21.6517,158.82,158.76,6.2987]
[1724740471750,45.0,158.81,158.77,6.2982]
[1724740471951,45.0,158.81,158.76,22.0451]
[1724740472275,45.0,158.81,158.76,15.7467]
[1724740472460,45.0,158.81,158.77,6.2984]
[1724740472657,51.2969,158.81,158.76,15.7467]
[1724740472862,75.7078808,158.81,158.76,15.7467]
[1724740473573,6.298,158.78,158.72,22.0502]
[1724740473874,45.0,158.77,158.72,22.0502]
[1724740474563,45.0,158.77,158.73,6.2999]
[1724740475963,45.0,158.78,158.73,6.2999]
[1724740476662,51.2981,158.78,158.73,6.2999]
[1724740477974,51.2981,158.78,158.72,22.0505]
[1724740478166,20.0,158.77,158.72,15.7502]
[1724740478366,6.2995,158.75,158.68,15.7542]
[1724740478765,22.8236,158.76,158.7,6.3011]
[1724740478962,45.0,158.75,158.7,6.3011]
[1724740479573,45.0,158.75,158.71,6.3007]
[1724740480570,22.8236,158.76,158.71,6.3007]
[1724740480771,16.5248,158.76,158.71,6.3007]
[1724740481091,16.5248,158.76,158.66,3.5753822]
[1724740481281,22.8239,158.76,158.7,6.3011]
[1724740481578,45.0,158.75,158.7,6.3011]
[1724740481898,24.4109808,158.73,158.66,7.1187822]
[1724740482184,6.3008,158.71,158.66,0.8160822]
[1724740482360,45.0,158.7,158.66,0.8160822]
[1724740482562,61.5248,158.7,158.66,0.8160822]
[1724740482764,67.826,158.7,158.66,0.8160822]
[1724740483164,61.5248,158.7,158.66,0.8160822]
[1724740484073,16.5248,158.7,158.66,0.8160822]
[1724740485683,16.5248,158.7,158.66,7.1186822]
[1724740487559,16.5248,158.7,158.66,0.8160822]
[1724740487878,16.5248,158.7,158.67,6.3022]
[1724740488780,16.5248,158.7,158.66,7.1187822]
[1724740490281,16.5248,158.7,158.68,6.3017]
[1724740490605,6.3012,158.7,158.66,0.8160822]
[1724740490796,20.0,158.72,158.66,0.8160822]
[1724740490797,6.3016,158.69,158.66,0.8160822]
[1724740491124,6.3015,158.7,158.66,0.8160822]
[1724740491276,45.0,158.69,158.66,0.8160822]
[1724740491478,6.302,158.68,158.66,0.8160822]
[1724740491661,22.8268,158.68,158.66,0.8160822]
[1724740492102,45.0,158.67,158.66,0.8160822]
[1724740495318,51.5526,158.67,158.66,0.8160822]
[1724740497107,57.8549,158.67,158.66,0.8160822]
[1724740497303,71.5526,158.67,158.66,0.8160822]
[1724740498818,77.8549,158.67,158.66,0.8160822]
[1724740500408,77.8549,158.67,158.48,24.4109808]
[1724740500409,6.3041,158.63,158.41,6.314]
[1724740500714,6.3041,158.63,158.4,24.4109808]
[1724740500715,45.0,158.62,158.55,15.7676]
[1724740500892,24.4109808,158.61,158.55,15.7676]
[1724740501091,24.4109808,158.61,158.53,6.3077]
[1724740501092,6.3056,158.59,158.53,6.3077]
[1724740501290,24.4109808,158.61,158.51,16.5876822]
[1724740501291,24.4109808,158.61,158.54,7.56860255]
[1724740501492,16.5248,158.59,158.53,6.3078]
[1724740501792,45.0,158.58,158.53,6.3078]
[1724740501997,16.5248,158.59,158.54,7.56879625]
[1724740502221,16.5248,158.59,158.55,6.3071]
[1724740502727,51.5526,158.62,158.56,1.26131513]
[1724740503206,51.5526,158.62,158.57,6.3061]
[1724740503635,45.0,158.62,158.59,6.3055]
[1724740503915,6.0558,158.66,158.6,17.02330114]
[1724740504120,15.9739,158.68,158.61,1.26082182]
[1724740504513,15.9739,158.68,158.63,6.3037]
[1724740505210,20.0,158.67,158.57,9.1465]
[1724740505412,24.4109808,158.66,158.56,15.7665]
[1724740505605,6.3038,158.64,158.58,6.3059]
[1724740505800,6.3038,158.64,158.53,27.1702808]
[1724740505801,45.0,158.63,158.53,2.7593]
[1724740506001,45.0,158.63,158.58,6.3059]
[1724740506207,45.0,158.63,158.58,6.3058]
[1724740507511,45.0,158.63,158.58,22.07]
[1724740508101,51.3039,158.63,158.58,15.7642]
[1724740508305,6.3044,158.62,158.56,6.3064]
[1724740508619,20.0,158.61,158.56,6.3064]
[1724740509812,20.0,158.61,158.54,15.7684]
[1724740510016,20.0,158.61,158.55,1.26121933]
[1724740510212,20.0,158.61,158.57,6.3062]
[1724740510603,20.0,158.61,158.54,15.7684]
[1724740511101,6.3055,158.59,158.54,15.7684]
[1724740511298,50.7160808,158.61,158.54,15.7684]
[1724740511600,45.0,158.6,158.54,15.7684]
[1724740511933,20.0,158.59,158.54,22.0756]
[1724740514015,26.3055,158.59,158.54,22.0756]
[1724740514225,20.0,158.59,158.54,22.0756]
[1724740516108,15.9739,158.62,158.55,1.26135274]
[1724740516313,65.0,158.61,158.55,1.26135274]
[1724740516717,71.3047,158.61,158.56,6.3067]
[1724740517218,26.3047,158.61,158.56,6.3067]
[1724740517932,6.3052,158.6,158.55,6.3071]
[1724740518909,20.0,158.61,158.55,6.3071]
[1724740518910,26.3048,158.61,158.55,6.3071]
[1724740519114,20.0,158.61,158.57,6.3061]
[1724740519419,20.0,158.61,158.55,6.3067]
[1724740520434,20.0,158.61,158.54,15.7684]
[1724740520608,6.3063,158.58,158.52,6.3079]
[1724740520814,6.3063,158.58,158.51,0.8160822]
[1724740521011,6.3068,158.56,158.51,7.1246822]
[1724740521209,6.3062,158.58,158.52,6.3082]
[1724740523337,6.3064,158.57,158.51,7.1246822]
[1724740523717,6.3064,158.57,158.51,8.38626456]
[1724740523924,6.0339,158.58,158.52,6.3082]
[1724740524128,51.3063,158.57,158.51,0.8160822]
[1724740525330,45.0,158.57,158.52,6.3083]
[1724740526117,24.4109808,158.56,158.51,0.8160822]
[1724740526824,30.7176808,158.56,158.51,0.8160822]
[1724740528129,16.6597,158.54,158.51,0.8160822]
[1724740530331,41.0706808,158.54,158.51,0.8160822]
[1724740530639,6.3079,158.53,158.51,0.8160822]
[1724740530939,50.7192808,158.52,158.51,0.8160822]
[1724740531361,95.7192808,158.52,158.51,0.8160822]
[1724740531720,20.0,158.52,158.51,0.8160822]
[1724740531942,20.0,158.52,158.5,0.846128]
[1724740532346,6.0339,158.53,158.5,0.846128]
[1724740532724,12.3419,158.53,158.5,0.846128]
[1724740532923,6.3087,158.51,158.5,0.846128]
[1724740533321,44.4109808,158.52,158.42,15.7801]
[1724740533525,15.7694,158.54,158.38,6.26]
[1724740533526,24.4109808,158.46,158.41,6.3126]
[1724740533745,65.0,158.45,158.38,15.784]
[1724740533955,21.5369,158.47,158.41,15.7815]
[1724740534123,20.0,158.46,158.41,15.7815]
[1724740534524,15.3764,158.47,158.43,6.3119]
[1724740534740,15.3764,158.47,158.41,15.7815]
[1724740534940,21.6867,158.47,158.41,22.094]
[1724740535140,15.3764,158.47,158.41,22.094]
[1724740535448,15.3764,158.47,158.42,1.26240313]
[1724740535635,15.3764,158.47,158.41,15.7815]
[1724740535834,15.3764,158.47,158.42,6.3122]
[1724740536437,15.3764,158.47,158.43,6.3118]
[1724740536826,44.4109808,158.46,158.36,15.7858]
[1724740537028,65.0,158.45,158.36,15.7858]
[1724740537226,36.8830808,158.44,158.38,6.3138]
[1724740537745,6.3125,158.42,158.36,15.7858]
[1724740537964,50.5714808,158.44,158.36,15.7858]
[1724740538137,65.0,158.43,158.36,15.7858]
[1724740538327,20.0,158.41,158.34,0.8225]
[1724740538530,71.3133,158.4,158.34,0.8225]
[1724740538732,71.3133,158.4,158.34,7.1379]
[1724740538932,20.0,158.39,158.34,0.8225]
[1724740539258,65.0,158.38,158.34,0.8225]
[1724740539631,20.0,158.41,158.34,7.1378]
[1724740539844,45.0,158.4,158.34,7.1378]
[1724740540152,20.0,158.39,158.34,7.1378]
[1724740540362,15.3764,158.42,158.35,1.26304966]
[1724740540527,20.0,158.41,158.34,25.2334808]
[1724740540733,15.3764,158.42,158.37,15.7853]
[1724740541738,15.3764,158.42,158.38,6.3137]
[1724740541942,41.6888,158.42,158.37,15.7853]
[1724740542237,65.0,158.41,158.37,15.7853]
[1724740542436,65.0,158.41,158.36,6.3143]
[1724740542437,6.3131,158.4,158.34,7.138]
[1724740542642,6.3138,158.39,158.34,0.8225]
[1724740542842,20.0,158.38,158.34,0.8225]
[1724740543051,6.3148,158.36,158.34,0.8225]
[1724740543258,20.0,158.38,158.34,0.8225]
[1724740543557,51.1605,158.37,158.34,0.8225]
[1724740546072,57.4748,158.37,158.34,0.8225]
[1724740546254,51.1605,158.37,158.34,0.8225]
[1724740547562,45.0,158.37,158.34,0.8225]
[1724740547748,45.0,158.38,158.34,0.8225]
[1724740547945,6.3149,158.36,158.34,0.8225]
[1724740548140,100.3764,158.35,158.34,0.8225]
[1724740548673,60.3764,158.35,158.34,0.8225]
[1724740548862,80.3764,158.35,158.34,0.8225]
[1724740549570,100.3764,158.35,158.34,0.8225]
[1724740549749,106.6915,158.35,158.34,0.8225]
[1724740550668,80.3764,158.35,158.34,0.8225]
[1724740553050,65.0,158.35,158.34,0.8225]
[1724740553479,15.3764,158.38,158.36,6.3146]
[1724740553684,396.6764,158.42,158.34,31.52066016]
[1724740553973,6.1605,158.45,158.41,6.3125]
[1724740554160,15.3764,158.46,158.34,31.52066016]
[1724740554161,35.3764,158.46,158.4,15.7825]
[1724740554561,15.3764,158.46,158.42,6.3122]
[1724740554958,15.3764,158.46,158.43,6.3117]
[1724740555157,15.3764,158.46,158.42,6.3123]
[1724740555446,6.1605,158.48,158.43,6.3119]
[1724740555646,6.1605,158.48,158.44,6.3114]
[1724740555881,35.3764,158.5,158.44,6.3114]
[1724740556055,6.309,158.51,158.44,6.3114]
[1724740556260,20.0,158.54,158.46,15.7762]
[1724740556568,26.3075,158.54,158.48,6.3098]
[1724740557155,6.308,158.53,158.46,22.0865]
[1724740557363,20.0,158.52,158.42,15.7806]
[1724740557569,15.3764,158.55,158.45,15.7772]
[1724740557970,15.3764,158.55,158.48,15.7739]
[1724740558357,21.6835,158.55,158.48,22.0835]
[1724740558977,15.3764,158.55,158.48,15.7739]
[1724740559355,15.3764,158.55,158.5,6.309]
[1724740560989,15.3764,158.55,158.51,6.3086]
[1724740561296,20.0,158.58,158.52,6.3083]
[1724740561670,20.0,158.57,158.52,6.3083]
[1724740561875,26.1605,158.6,158.51,15.7715]
[1724740561876,20.0,158.6,158.51,15.7715]
[1724740562184,26.3051,158.6,158.51,15.7715]
[1724740562381,6.3055,158.59,158.51,15.7715]
[1724740562689,50.69816016,158.56,158.47,15.7753]
[1724740562903,6.3088,158.51,158.45,6.311]
[1724740563116,37.00636016,158.53,158.43,15.7793]
[1724740563270,20.0,158.52,158.43,15.7793]
[1724740563471,20.0,158.52,158.47,6.3102]
[1724740563769,20.0,158.52,158.47,6.3103]
[1724740564173,30.69816016,158.53,158.47,6.3103]
[1724740564374,45.0,158.52,158.47,6.3103]
[1724740564675,30.69816016,158.53,158.49,6.3094]
[1724740565072,30.69816016,158.53,158.46,15.7763]
[1724740565971,37.00606016,158.53,158.48,6.3099]
[1724740566381,15.6145,158.55,158.49,15.7735]
[1724740566580,6.3064,158.57,158.51,6.3086]
[1724740567898,50.69816016,158.52,158.45,15.7777]
[1724740568071,30.69816016,158.49,158.41,15.7813]
[1724740568274,6.3109,158.46,158.41,15.7813]
[1724740569000,50.69816016,158.46,158.38,6.3137]
[1724740569310,6.3125,158.42,158.37,15.7855]
[1724740569505,6.3125,158.42,158.32,6.1314]
[1724740569506,6.3127,158.41,158.33,15.7891]
[1724740569683,6.3127,158.41,158.35,6.315]
[1724740570996,6.3132,158.4,158.33,22.1047]
[1724740571616,20.0,158.42,158.28,36.82956016]
[1724740571785,65.0,158.41,158.29,1.26314146]
[1724740572294,71.3128,158.41,158.34,7.1378]
[1724740573004,52.38656016,158.43,158.35,15.7869]
[1724740573209,21.6884,158.43,158.35,15.7869]
[1724740573511,28.0003,158.43,158.35,15.7869]
[1724740573703,28.0003,158.43,158.36,6.3146]
[1724740574201,21.6884,158.43,158.37,6.314]
[1724740574510,21.6884,158.43,158.38,6.3138]
[1724740575393,15.6145,158.43,158.37,6.3139]
[1724740576706,51.3123,158.42,158.36,6.3147]
[1724740576887,52.62456016,158.43,158.37,6.3143]
[1724740577089,15.6145,158.43,158.37,6.3143]
[1724740577484,15.6145,158.43,158.35,22.1016]
[1724740577792,51.3123,158.42,158.36,6.3146]
[1724740579204,65.0,158.42,158.35,15.7869]
[1724740579594,20.0,158.41,158.35,15.7869]
[1724740580099,6.3131,158.4,158.35,15.7869]
[1724740580297,6.3131,158.4,158.35,22.1019]
[1724740581184,15.6145,158.43,158.34,31.52066016]
[1724740581384,381.3,158.47,158.39,6.3131]
[1724740581689,401.3,158.47,158.39,6.3131]
[1724740582001,6.3108,158.46,158.4,6.3128]
[1724740582214,381.3,158.47,158.41,6.3124]
[1724740582387,381.3,158.46,158.41,6.3124]
[1724740582589,387.6107,158.46,158.41,6.3124]
[1724740582913,20.0,158.45,158.41,6.3124]
[1724740583405,381.3,158.46,158.42,6.3122]